[Event "Titled Tuesday Blitz November 08 Early 2022"]
[White "Bodnaruk, Anastasia"]
[Black "Zemlyanskii, Ivan"]
[WhiteFideId "4181751"]
[BlackFideId "24249971"]
[WhiteElo "2319"]
[BlackElo "2107"]
[Result "0-1"]
[Round "02"]
[TimeControl "180+1"]
[Date "2022.11.09"]
[WhiteClock "0:00:02"]
[BlackClock "0:00:07"]

1. e4 {[%clk 0:02:56]}  c5 {[%clk 0:03:00]} 2. Nc3 {[%clk 0:02:54]}  a6 {[%clk 0:02:59]} 3. Nge2 {[%clk 0:02:53]}  b5 {[%clk 0:02:52]} 4. g3 {[%clk 0:02:53]}  Bb7 {[%clk 0:02:51]} 5. Bg2 {[%clk 0:02:54]}  e6 {[%clk 0:02:51]} 6. d4 {[%clk 0:02:53]}  cxd4 {[%clk 0:02:50]} 7. Nxd4 {[%clk 0:02:54]}  Nf6 {[%clk 0:02:50]} 8. O-O {[%clk 0:02:53]}  d6 {[%clk 0:02:29]} 9. Re1 {[%clk 0:02:52]}  Nbd7 {[%clk 0:02:29]} 10. a4 {[%clk 0:02:31]}  b4 {[%clk 0:02:17]} 11. Nd5 {[%clk 0:02:31]}  e5 {[%clk 0:01:53]} 12. Nf5 {[%clk 0:02:27]}  Nxd5 {[%clk 0:01:49]} 13. exd5 {[%clk 0:02:26]}  g6 {[%clk 0:01:44]} 14. Nh6 {[%clk 0:02:21]}  Bg7 {[%clk 0:01:42]} 15. a5 {[%clk 0:02:09]}  Qc7 {[%clk 0:01:15]} 16. h4 {[%clk 0:01:46]}  Rc8 {[%clk 0:01:09]} 17. Re2 {[%clk 0:01:44]}  f5 {[%clk 0:01:03]} 18. Bg5 {[%clk 0:01:37]}  Nf6 {[%clk 0:00:53]} 19. Qd2 {[%clk 0:01:23]}  Qc5 {[%clk 0:00:47]} 20. Bxf6 {[%clk 0:01:03]}  Bxf6 {[%clk 0:00:47]} 21. Ra4 {[%clk 0:00:57]}  e4 {[%clk 0:00:29]} 22. Rxb4 {[%clk 0:00:46]}  Qxd5 {[%clk 0:00:28]} 23. Rxb7 {[%clk 0:00:39]}  Qxb7 {[%clk 0:00:27]} 24. Qxd6 {[%clk 0:00:39]}  Qe7 {[%clk 0:00:20]} 25. Qxa6 {[%clk 0:00:37]}  Rd8 {[%clk 0:00:19]} 26. Qc4 {[%clk 0:00:19]}  Kf8 {[%clk 0:00:18]} 27. g4 {[%clk 0:00:13]}  Kg7 {[%clk 0:00:14]} 28. g5 {[%clk 0:00:14]}  Be5 {[%clk 0:00:13]} 29. Re1 {[%clk 0:00:11]}  Rd2 {[%clk 0:00:12]} 30. a6 {[%clk 0:00:08]}  Bd4 {[%clk 0:00:12]} 31. Re2 {[%clk 0:00:04]}  Rxe2 {[%clk 0:00:08]} 32. Qxe2 {[%clk 0:00:03]}  e3 {[%clk 0:00:09]} 33. f4 {[%clk 0:00:02]}  Rc8 {[%clk 0:00:06]} 34. c3 {[%clk 0:00:02]}  Ba7 {[%clk 0:00:05]} 35. h5 {[%clk 0:00:02]}  Rd8 {[%clk 0:00:05]} 36. Kh2 {[%clk 0:00:01]}  Rd2 {[%clk 0:00:05]} 37. Qc4 {[%clk 0:00:02]}  Rd8 {[%clk 0:00:05]} 38. hxg6 {[%clk 0:00:02]}  e2 {[%clk 0:00:04]} 39. Nxf5+ {[%clk 0:00:01]}  Kh8 {[%clk 0:00:05]} 40. Nxe7 {[%clk 0:00:01]}  e1=Q {[%clk 0:00:05]} 41. g7+ {[%clk 0:00:02]}  Kxg7 {[%clk 0:00:05]} 42. Nf5+ {[%clk 0:00:03]}  Kg6 {[%clk 0:00:05]} 43. Qc6+ {[%clk 0:00:02]}  Kxf5 {[%clk 0:00:02]} 44. Qf6+ {[%clk 0:00:02]}  Kg4 {[%clk 0:00:03]} 45. Bh3+ {[%clk 0:00:02]}  Kf3 {[%clk 0:00:03]} 46. Bg2+ {[%clk 0:00:02]}  Ke2 {[%clk 0:00:04]} 47. Qe7+ {[%clk 0:00:02]}  Kf2 {[%clk 0:00:04]} 48. Qxd8 {[%clk 0:00:01]}  Qg1+ {[%clk 0:00:05]} 49. Kh3 {[%clk 0:00:01]}  Qxg2+ {[%clk 0:00:06]} 50. Kh4 {[%clk 0:00:01]}  Qg3+ {[%clk 0:00:06]} 51. Kh5 {[%clk 0:00:02]}  Qh3# {[%clk 0:00:07]} 0-1


[Site "https://www.chess.com"]

[Event "Titled Tuesday Blitz November 08 Early 2022"]
[White "Brown, Andrew"]
[Black "Miszler, Levente"]
[WhiteFideId "3206513"]
[BlackFideId "763276"]
[WhiteElo "2245"]
[BlackElo "2176"]
[Result "0-1"]
[Round "02"]
[TimeControl "180+1"]
[Date "2022.11.09"]
[WhiteClock "0:00:03"]
[BlackClock "0:00:38"]

1. d4 {[%clk 0:02:54]}  d5 {[%clk 0:02:59]} 2. c4 {[%clk 0:02:54]}  c6 {[%clk 0:02:59]} 3. Nc3 {[%clk 0:02:52]}  Nf6 {[%clk 0:02:58]} 4. Nf3 {[%clk 0:02:51]}  e6 {[%clk 0:02:57]} 5. g3 {[%clk 0:02:50]}  Nbd7 {[%clk 0:02:52]} 6. Bg2 {[%clk 0:02:50]}  dxc4 {[%clk 0:02:52]} 7. O-O {[%clk 0:02:48]}  b5 {[%clk 0:02:45]} 8. a4 {[%clk 0:02:46]}  b4 {[%clk 0:02:44]} 9. Na2 {[%clk 0:02:45]}  a5 {[%clk 0:02:42]} 10. Bf4 {[%clk 0:02:41]}  Ba6 {[%clk 0:02:36]} 11. Rc1 {[%clk 0:02:37]}  Rc8 {[%clk 0:02:35]} 12. e4 {[%clk 0:02:12]}  Be7 {[%clk 0:02:27]} 13. Re1 {[%clk 0:02:09]}  O-O {[%clk 0:02:26]} 14. h3 {[%clk 0:01:34]}  c5 {[%clk 0:02:12]} 15. d5 {[%clk 0:01:31]}  exd5 {[%clk 0:02:12]} 16. exd5 {[%clk 0:01:24]}  Re8 {[%clk 0:02:12]} 17. Nd2 {[%clk 0:01:12]}  Nb6 {[%clk 0:02:07]} 18. d6 {[%clk 0:00:41]}  Bxd6 {[%clk 0:02:02]} 19. Rxe8+ {[%clk 0:00:40]}  Nxe8 {[%clk 0:02:02]} 20. Qg4 {[%clk 0:00:30]}  Bxf4 {[%clk 0:02:00]} 21. Qxf4 {[%clk 0:00:30]}  Qd4 {[%clk 0:01:53]} 22. Ne4 {[%clk 0:00:24]}  Nd5 {[%clk 0:01:42]} 23. Qg4 {[%clk 0:00:15]}  Nef6 {[%clk 0:01:42]} 24. Qf5 {[%clk 0:00:11]}  g6 {[%clk 0:01:29]} 25. Nxf6+ {[%clk 0:00:08]}  Nxf6 {[%clk 0:01:29]} 26. Qg5 {[%clk 0:00:06]}  Re8 {[%clk 0:01:19]} 27. g4 {[%clk 0:00:03]}  Re2 {[%clk 0:01:13]} 28. Rf1 {[%clk 0:00:03]}  Ne4 {[%clk 0:01:02]} 29. Bxe4 {[%clk 0:00:03]}  Qxe4 {[%clk 0:01:02]} 30. Nc1 {[%clk 0:00:03]}  Rxb2 {[%clk 0:00:55]} 31. Qxc5 {[%clk 0:00:03]}  c3 {[%clk 0:00:44]} 32. f3 {[%clk 0:00:03]}  Qc2 {[%clk 0:00:38]} 0-1


[Site "https://www.chess.com"]

[Event "Titled Tuesday Blitz November 08 Early 2022"]
[White "Butolo, Alexandru-Mircea"]
[Black "Sarkar, Justin"]
[WhiteFideId "1261649"]
[BlackFideId "2010011"]
[WhiteElo "1897"]
[BlackElo "2239"]
[Result "0-1"]
[Round "02"]
[TimeControl "180+1"]
[Date "2022.11.09"]
[WhiteClock "0:00:01"]
[BlackClock "0:00:29"]

1. d4 {[%clk 0:03:00]}  Nf6 {[%clk 0:02:54]} 2. Bf4 {[%clk 0:03:01]}  Nc6 {[%clk 0:02:50]} 3. d5 {[%clk 0:02:53]}  e5 {[%clk 0:02:43]} 4. Bg3 {[%clk 0:02:43]}  Nb4 {[%clk 0:02:34]} 5. Nc3 {[%clk 0:02:42]}  d6 {[%clk 0:02:21]} 6. e4 {[%clk 0:02:42]}  Be7 {[%clk 0:02:08]} 7. a3 {[%clk 0:02:39]}  Na6 {[%clk 0:02:08]} 8. Bxa6 {[%clk 0:02:23]}  bxa6 {[%clk 0:02:09]} 9. Nge2 {[%clk 0:02:19]}  Nh5 {[%clk 0:02:02]} 10. f3 {[%clk 0:02:18]}  Nxg3 {[%clk 0:02:00]} 11. hxg3 {[%clk 0:02:16]}  f5 {[%clk 0:01:37]} 12. Qd3 {[%clk 0:01:48]}  O-O {[%clk 0:01:31]} 13. O-O-O {[%clk 0:01:24]}  Rb8 {[%clk 0:01:27]} 14. Rh5 {[%clk 0:01:10]}  g6 {[%clk 0:01:22]} 15. Rh2 {[%clk 0:01:07]}  Rf7 {[%clk 0:01:11]} 16. Rdh1 {[%clk 0:00:43]}  Rb6 {[%clk 0:01:00]} 17. Qe3 {[%clk 0:00:13]}  Bd7 {[%clk 0:00:49]} 18. exf5 {[%clk 0:00:13]}  gxf5 {[%clk 0:00:43]} 19. g4 {[%clk 0:00:07]}  Bg5 {[%clk 0:00:35]} 20. f4 {[%clk 0:00:05]}  exf4 {[%clk 0:00:35]} 21. Qd2 {[%clk 0:00:01]}  f3 {[%clk 0:00:29]} 0-1


[Site "https://www.chess.com"]

[Event "Titled Tuesday Blitz November 08 Early 2022"]
[White "Chigaev, Maksim"]
[Black "Perez Gormaz, Matias"]
[WhiteFideId "4108116"]
[BlackFideId "3406342"]
[WhiteElo "2541"]
[BlackElo "2341"]
[Result "1-0"]
[Round "02"]
[TimeControl "180+1"]
[Date "2022.11.08"]
[WhiteClock "0:00:04"]
[BlackClock "0:00:04"]

1. Nf3 {[%clk 0:03:00]}  c5 {[%clk 0:03:00]} 2. c4 {[%clk 0:03:00]}  Nf6 {[%clk 0:02:59]} 3. Nc3 {[%clk 0:02:57]}  g6 {[%clk 0:02:56]} 4. d4 {[%clk 0:02:56]}  Bg7 {[%clk 0:02:53]} 5. e4 {[%clk 0:02:55]}  cxd4 {[%clk 0:02:52]} 6. Nxd4 {[%clk 0:02:56]}  O-O {[%clk 0:02:52]} 7. Be2 {[%clk 0:02:57]}  Nc6 {[%clk 0:02:52]} 8. Be3 {[%clk 0:02:56]}  d6 {[%clk 0:02:48]} 9. O-O {[%clk 0:02:54]}  Bd7 {[%clk 0:02:44]} 10. h3 {[%clk 0:02:53]}  a5 {[%clk 0:02:41]} 11. Nf3 {[%clk 0:02:51]}  a4 {[%clk 0:02:36]} 12. Qb1 {[%clk 0:02:43]}  Qa5 {[%clk 0:02:34]} 13. Rc1 {[%clk 0:02:41]}  Rfc8 {[%clk 0:02:33]} 14. a3 {[%clk 0:02:31]}  Be6 {[%clk 0:02:24]} 15. Nd5 {[%clk 0:02:19]}  Nd7 {[%clk 0:02:08]} 16. Rd1 {[%clk 0:02:02]}  Bxd5 {[%clk 0:02:02]} 17. Rxd5 {[%clk 0:01:58]}  Qc7 {[%clk 0:01:57]} 18. Qc2 {[%clk 0:01:54]}  Na5 {[%clk 0:01:50]} 19. Rc1 {[%clk 0:01:48]}  Nb3 {[%clk 0:01:49]} 20. Rcd1 {[%clk 0:01:45]}  Nb6 {[%clk 0:01:48]} 21. Bxb6 {[%clk 0:01:31]}  Qxb6 {[%clk 0:01:49]} 22. e5 {[%clk 0:01:31]}  dxe5 {[%clk 0:01:36]} 23. Nxe5 {[%clk 0:01:13]}  e6 {[%clk 0:01:32]} 24. Nd7 {[%clk 0:01:13]}  Qc7 {[%clk 0:01:13]} 25. Rd6 {[%clk 0:01:09]}  Rd8 {[%clk 0:00:49]} 26. c5 {[%clk 0:00:41]}  Rac8 {[%clk 0:00:49]} 27. Bb5 {[%clk 0:00:38]}  Nxc5 {[%clk 0:00:37]} 28. Qxc5 {[%clk 0:00:24]}  Rxd7 {[%clk 0:00:07]} 29. Qxc7 {[%clk 0:00:22]}  Rdxc7 {[%clk 0:00:07]} 30. Rd8+ {[%clk 0:00:22]}  Rxd8 {[%clk 0:00:08]} 31. Rxd8+ {[%clk 0:00:23]}  Bf8 {[%clk 0:00:09]} 32. Bxa4 {[%clk 0:00:23]}  Kg7 {[%clk 0:00:09]} 33. Rd1 {[%clk 0:00:20]}  Rc5 {[%clk 0:00:09]} 34. Kf1 {[%clk 0:00:19]}  Be7 {[%clk 0:00:09]} 35. Rd7 {[%clk 0:00:13]}  Bf6 {[%clk 0:00:06]} 36. Rxb7 {[%clk 0:00:13]}  Bd4 {[%clk 0:00:06]} 37. Be8 {[%clk 0:00:06]}  Rf5 {[%clk 0:00:04]} 38. f3 {[%clk 0:00:06]}  h5 {[%clk 0:00:04]} 39. Ke2 {[%clk 0:00:06]}  h4 {[%clk 0:00:05]} 40. b4 {[%clk 0:00:05]}  Be5 {[%clk 0:00:03]} 41. a4 {[%clk 0:00:03]}  Bd4 {[%clk 0:00:03]} 42. a5 {[%clk 0:00:04]}  Re5+ {[%clk 0:00:03]} 43. Kd3 {[%clk 0:00:04]}  Bf2 {[%clk 0:00:03]} 44. Kc4 {[%clk 0:00:04]}  Re1 {[%clk 0:00:03]} 45. Bxf7 {[%clk 0:00:04]}  Kh6 {[%clk 0:00:03]} 46. a6 {[%clk 0:00:04]}  Rc1+ {[%clk 0:00:04]} 47. Kb5 {[%clk 0:00:04]}  e5 {[%clk 0:00:04]} 48. Bd5 {[%clk 0:00:04]}  Rb1 {[%clk 0:00:04]} 49. Be4 {[%clk 0:00:04]}  Be1 {[%clk 0:00:04]} 50. Bxb1 {[%clk 0:00:04]} 1-0


[Site "https://www.chess.com"]

[Event "Titled Tuesday Blitz November 08 Early 2022"]
[White "Concio, Michael Jr."]
[Black "Winkels, Marcel"]
[WhiteFideId "5217873"]
[BlackFideId "1003887"]
[WhiteElo "2236"]
[BlackElo "1900"]
[Result "1-0"]
[Round "02"]
[TimeControl "180+1"]
[Date "2022.11.09"]
[WhiteClock "0:00:06"]
[BlackClock "0:00:01"]

1. e4 {[%clk 0:03:00]}  c5 {[%clk 0:02:58]} 2. Nf3 {[%clk 0:02:58]}  e6 {[%clk 0:02:58]} 3. d4 {[%clk 0:02:58]}  cxd4 {[%clk 0:02:58]} 4. Nxd4 {[%clk 0:02:59]}  Nc6 {[%clk 0:02:58]} 5. Be3 {[%clk 0:02:52]}  Nf6 {[%clk 0:02:52]} 6. Nd2 {[%clk 0:02:38]}  d5 {[%clk 0:02:50]} 7. exd5 {[%clk 0:02:04]}  Nxd5 {[%clk 0:02:46]} 8. Nxc6 {[%clk 0:01:58]}  bxc6 {[%clk 0:02:36]} 9. Bd4 {[%clk 0:01:57]}  c5 {[%clk 0:02:14]} 10. Be5 {[%clk 0:01:54]}  Qg5 {[%clk 0:01:57]} 11. Nf3 {[%clk 0:01:40]}  Qg6 {[%clk 0:01:53]} 12. Bb5+ {[%clk 0:01:36]}  Bd7 {[%clk 0:01:47]} 13. Bxd7+ {[%clk 0:01:35]}  Kxd7 {[%clk 0:01:47]} 14. c4 {[%clk 0:01:36]}  Qe4+ {[%clk 0:01:39]} 15. Qe2 {[%clk 0:01:35]}  Qxe2+ {[%clk 0:01:38]} 16. Kxe2 {[%clk 0:01:36]}  Nf6 {[%clk 0:01:33]} 17. Rhd1+ {[%clk 0:01:31]}  Kc6 {[%clk 0:01:32]} 18. Ng5 {[%clk 0:01:26]}  Be7 {[%clk 0:01:26]} 19. h3 {[%clk 0:00:45]}  Rhf8 {[%clk 0:01:17]} 20. Bxf6 {[%clk 0:00:32]}  gxf6 {[%clk 0:01:16]} 21. Nf3 {[%clk 0:00:31]}  Rad8 {[%clk 0:01:10]} 22. Rxd8 {[%clk 0:00:31]}  Rxd8 {[%clk 0:01:08]} 23. b3 {[%clk 0:00:31]}  Rg8 {[%clk 0:00:55]} 24. g4 {[%clk 0:00:30]}  h5 {[%clk 0:00:53]} 25. Rg1 {[%clk 0:00:27]}  hxg4 {[%clk 0:00:52]} 26. Rxg4 {[%clk 0:00:24]}  Rh8 {[%clk 0:00:35]} 27. h4 {[%clk 0:00:21]}  f5 {[%clk 0:00:34]} 28. Rg7 {[%clk 0:00:21]}  Bxh4 {[%clk 0:00:31]} 29. Rxf7 {[%clk 0:00:11]}  a5 {[%clk 0:00:26]} 30. Ne5+ {[%clk 0:00:11]}  Kd6 {[%clk 0:00:18]} 31. Nd3 {[%clk 0:00:05]}  Be7 {[%clk 0:00:16]} 32. Nxc5 {[%clk 0:00:06]}  Kxc5 {[%clk 0:00:15]} 33. Rxe7 {[%clk 0:00:06]}  Rh6 {[%clk 0:00:14]} 34. Ra7 {[%clk 0:00:06]}  Kb6 {[%clk 0:00:13]} 35. Rd7 {[%clk 0:00:06]}  Kc6 {[%clk 0:00:12]} 36. Rd8 {[%clk 0:00:05]}  Kc7 {[%clk 0:00:11]} 37. Ra8 {[%clk 0:00:05]}  Kb6 {[%clk 0:00:11]} 38. Rg8 {[%clk 0:00:03]}  Kc6 {[%clk 0:00:10]} 39. Rb8 {[%clk 0:00:03]}  Kc5 {[%clk 0:00:08]} 40. Rb5+ {[%clk 0:00:04]}  Kc6 {[%clk 0:00:06]} 41. Rxa5 {[%clk 0:00:04]}  Rh1 {[%clk 0:00:04]} 42. Ra6+ {[%clk 0:00:04]}  Kd7 {[%clk 0:00:02]} 43. c5 {[%clk 0:00:05]}  Rc1 {[%clk 0:00:01]} 44. b4 {[%clk 0:00:06]} 1-0


[Site "https://www.chess.com"]

[Event "Titled Tuesday Blitz November 08 Early 2022"]
[White "Cramling Bellon, Anna"]
[Black "Ahn, Hongjin"]
[WhiteFideId "32009232"]
[BlackFideId "13201492"]
[WhiteElo "1972"]
[BlackElo "2182"]
[Result "0-1"]
[Round "02"]
[TimeControl "180+1"]
[Date "2022.11.09"]
[WhiteClock "0:00:02"]
[BlackClock "0:01:22"]

1. d4 {[%clk 0:03:00]}  Nf6 {[%clk 0:02:59]} 2. c4 {[%clk 0:02:59]}  e6 {[%clk 0:02:59]} 3. Nf3 {[%clk 0:02:55]}  d5 {[%clk 0:02:59]} 4. Nc3 {[%clk 0:02:54]}  a6 {[%clk 0:02:57]} 5. cxd5 {[%clk 0:02:54]}  exd5 {[%clk 0:02:58]} 6. Bg5 {[%clk 0:02:55]}  Be6 {[%clk 0:02:59]} 7. e3 {[%clk 0:02:53]}  Nbd7 {[%clk 0:02:59]} 8. Bd3 {[%clk 0:02:53]}  Bd6 {[%clk 0:02:57]} 9. Qc2 {[%clk 0:02:52]}  h6 {[%clk 0:02:57]} 10. Bh4 {[%clk 0:02:52]}  c6 {[%clk 0:02:57]} 11. O-O {[%clk 0:02:50]}  O-O {[%clk 0:02:56]} 12. Rfe1 {[%clk 0:02:50]}  Re8 {[%clk 0:02:54]} 13. e4 {[%clk 0:02:44]}  dxe4 {[%clk 0:02:54]} 14. Nxe4 {[%clk 0:02:45]}  Be7 {[%clk 0:02:54]} 15. Nc5 {[%clk 0:02:29]}  Nxc5 {[%clk 0:02:46]} 16. dxc5 {[%clk 0:02:30]}  Nd5 {[%clk 0:02:43]} 17. Bxe7 {[%clk 0:02:27]}  Qxe7 {[%clk 0:02:44]} 18. Bf5 {[%clk 0:01:37]}  Bxf5 {[%clk 0:02:24]} 19. Qxf5 {[%clk 0:01:38]}  Qxc5 {[%clk 0:02:24]} 20. Rac1 {[%clk 0:01:03]}  Qd6 {[%clk 0:02:18]} 21. Ne5 {[%clk 0:00:54]}  Qe6 {[%clk 0:02:16]} 22. Qxe6 {[%clk 0:00:48]}  Rxe6 {[%clk 0:02:17]} 23. Nd7 {[%clk 0:00:43]}  Nf4 {[%clk 0:02:06]} 24. Rxe6 {[%clk 0:00:35]}  Nxe6 {[%clk 0:02:07]} 25. Kf1 {[%clk 0:00:27]}  Rd8 {[%clk 0:02:06]} 26. Rd1 {[%clk 0:00:22]}  f6 {[%clk 0:01:53]} 27. Ke1 {[%clk 0:00:19]}  Kf7 {[%clk 0:01:51]} 28. f4 {[%clk 0:00:19]}  Ke7 {[%clk 0:01:45]} 29. Nb6 {[%clk 0:00:09]}  Rxd1+ {[%clk 0:01:42]} 30. Kxd1 {[%clk 0:00:09]}  Nxf4 {[%clk 0:01:41]} 31. g3 {[%clk 0:00:10]}  Nd5 {[%clk 0:01:38]} 32. Nc4 {[%clk 0:00:01]}  b5 {[%clk 0:01:38]} 33. Nd2 {[%clk 0:00:01]}  f5 {[%clk 0:01:36]} 34. Ke2 {[%clk 0:00:02]}  Kd6 {[%clk 0:01:36]} 35. Nf3 {[%clk 0:00:02]}  g6 {[%clk 0:01:32]} 36. a3 {[%clk 0:00:03]}  c5 {[%clk 0:01:26]} 37. Kd3 {[%clk 0:00:02]}  g5 {[%clk 0:01:25]} 38. h3 {[%clk 0:00:02]}  Nf6 {[%clk 0:01:22]} 0-1


[Site "https://www.chess.com"]

[Event "Titled Tuesday Blitz November 08 Early 2022"]
[White "Crevatin, Leo"]
[Black "Liyanage, Ranindu Dilshan"]
[WhiteFideId "1726307"]
[BlackFideId "9915834"]
[WhiteElo "2208"]
[BlackElo "2210"]
[Result "0-1"]
[Round "02"]
[TimeControl "180+1"]
[Date "2022.11.09"]
[WhiteClock "0:02:52"]
[BlackClock "0:02:50"]

1. e4 {[%clk 0:03:00]}  e6 {[%clk 0:02:58]} 2. d4 {[%clk 0:03:00]}  d5 {[%clk 0:02:59]} 3. Nc3 {[%clk 0:03:01]}  Nf6 {[%clk 0:02:59]} 4. Bg5 {[%clk 0:03:00]}  dxe4 {[%clk 0:02:54]} 5. Nxe4 {[%clk 0:02:59]}  Be7 {[%clk 0:02:55]} 6. Bxf6 {[%clk 0:02:59]}  gxf6 {[%clk 0:02:55]} 7. Nf3 {[%clk 0:02:59]}  f5 {[%clk 0:02:52]} 8. Nc3 {[%clk 0:02:59]}  a6 {[%clk 0:02:53]} 9. g3 {[%clk 0:02:53]}  b5 {[%clk 0:02:51]} 10. Bg2 {[%clk 0:02:54]}  Bb7 {[%clk 0:02:52]} 11. Qd2 {[%clk 0:02:53]}  Nd7 {[%clk 0:02:50]} 12. O-O-O {[%clk 0:02:53]}  Bxf3 {[%clk 0:02:50]} 13. Bxf3 {[%clk 0:02:52]}  Bg5 {[%clk 0:02:50]} 0-1


[Site "https://www.chess.com"]

[Event "Titled Tuesday Blitz November 08 Early 2022"]
[White "Cruz Mendez, Jean Marco"]
[Black "Madaminov, Mukhiddin"]
[WhiteFideId "3526402"]
[BlackFideId "14210703"]
[WhiteElo "2064"]
[BlackElo "2341"]
[Result "1-0"]
[Round "02"]
[TimeControl "180+1"]
[Date "2022.11.09"]
[WhiteClock "0:00:21"]
[BlackClock "0:00:04"]

1. e4 {[%clk 0:02:50]}  e6 {[%clk 0:02:58]} 2. d4 {[%clk 0:02:46]}  d5 {[%clk 0:02:59]} 3. Nc3 {[%clk 0:02:46]}  Nf6 {[%clk 0:02:59]} 4. e5 {[%clk 0:02:40]}  Nfd7 {[%clk 0:02:59]} 5. f4 {[%clk 0:02:41]}  c5 {[%clk 0:02:59]} 6. Nf3 {[%clk 0:02:41]}  Nc6 {[%clk 0:03:00]} 7. Ne2 {[%clk 0:02:40]}  Be7 {[%clk 0:02:48]} 8. c3 {[%clk 0:02:39]}  O-O {[%clk 0:02:47]} 9. g3 {[%clk 0:02:36]}  b5 {[%clk 0:02:37]} 10. Be3 {[%clk 0:02:24]}  b4 {[%clk 0:02:37]} 11. cxb4 {[%clk 0:02:05]}  cxd4 {[%clk 0:02:34]} 12. Nexd4 {[%clk 0:02:04]}  Nxd4 {[%clk 0:02:33]} 13. Nxd4 {[%clk 0:02:03]}  Bxb4+ {[%clk 0:02:33]} 14. Kf2 {[%clk 0:02:02]}  Bb7 {[%clk 0:02:16]} 15. Bd3 {[%clk 0:02:02]}  Nc5 {[%clk 0:02:14]} 16. a3 {[%clk 0:01:59]}  Nxd3+ {[%clk 0:02:13]} 17. Qxd3 {[%clk 0:02:00]}  Bc5 {[%clk 0:02:09]} 18. Rhc1 {[%clk 0:01:54]}  Bb6 {[%clk 0:02:07]} 19. b4 {[%clk 0:01:52]}  Qd7 {[%clk 0:02:00]} 20. a4 {[%clk 0:01:47]}  a6 {[%clk 0:01:59]} 21. a5 {[%clk 0:01:37]}  Bxd4 {[%clk 0:01:45]} 22. Bxd4 {[%clk 0:01:38]}  Bc6 {[%clk 0:01:46]} 23. Rc3 {[%clk 0:01:28]}  Bb5 {[%clk 0:01:46]} 24. Qc2 {[%clk 0:01:27]}  Bc4 {[%clk 0:01:46]} 25. Rd1 {[%clk 0:01:24]}  Rfc8 {[%clk 0:01:42]} 26. Qd2 {[%clk 0:01:17]}  Rab8 {[%clk 0:01:33]} 27. Bb6 {[%clk 0:01:16]}  h6 {[%clk 0:01:28]} 28. Qd4 {[%clk 0:01:13]}  Qa4 {[%clk 0:01:27]} 29. Bc5 {[%clk 0:01:09]}  Qa2+ {[%clk 0:01:19]} 30. Rd2 {[%clk 0:01:07]}  Qb1 {[%clk 0:01:18]} 31. Rd1 {[%clk 0:01:03]}  Qf5 {[%clk 0:01:17]} 32. Kg2 {[%clk 0:01:00]}  h5 {[%clk 0:01:08]} 33. h3 {[%clk 0:00:59]}  Rb5 {[%clk 0:01:05]} 34. Qe3 {[%clk 0:00:44]}  Rcxc5 {[%clk 0:00:23]} 35. bxc5 {[%clk 0:00:41]}  Rb2+ {[%clk 0:00:24]} 36. Rd2 {[%clk 0:00:37]}  Rb1 {[%clk 0:00:24]} 37. Qf3 {[%clk 0:00:27]}  Bf1+ {[%clk 0:00:21]} 38. Qxf1 {[%clk 0:00:22]}  Rxf1 {[%clk 0:00:18]} 39. Kxf1 {[%clk 0:00:23]}  Qxh3+ {[%clk 0:00:08]} 40. Ke1 {[%clk 0:00:23]}  Qh1+ {[%clk 0:00:07]} 41. Ke2 {[%clk 0:00:23]}  Qe4+ {[%clk 0:00:07]} 42. Kd1 {[%clk 0:00:24]}  Qb1+ {[%clk 0:00:06]} 43. Ke2 {[%clk 0:00:22]}  Qb5+ {[%clk 0:00:06]} 44. Kd1 {[%clk 0:00:22]}  Qc6 {[%clk 0:00:07]} 45. Rd4 {[%clk 0:00:20]}  Kh7 {[%clk 0:00:05]} 46. Kd2 {[%clk 0:00:20]}  Kg6 {[%clk 0:00:05]} 47. Ke3 {[%clk 0:00:21]}  Kf5 {[%clk 0:00:06]} 48. Rb4 {[%clk 0:00:21]}  d4+ {[%clk 0:00:04]} 49. Rxd4 {[%clk 0:00:21]}  Kg4 {[%clk 0:00:04]} 50. Rd6 {[%clk 0:00:21]}  Qf3+ {[%clk 0:00:03]} 51. Kd4 {[%clk 0:00:21]}  Qf2+ {[%clk 0:00:02]} 52. Kc4 {[%clk 0:00:22]}  Qa2+ {[%clk 0:00:03]} 53. Kd3 {[%clk 0:00:22]}  Qb1+ {[%clk 0:00:02]} 54. Kd4 {[%clk 0:00:22]}  Qb4+ {[%clk 0:00:03]} 55. Kd3 {[%clk 0:00:21]}  Qb5+ {[%clk 0:00:03]} 56. Kc2 {[%clk 0:00:21]}  Qa4+ {[%clk 0:00:03]} 57. Kd2 {[%clk 0:00:21]}  Qa2+ {[%clk 0:00:03]} 58. Kd3 {[%clk 0:00:21]}  Qb1+ {[%clk 0:00:04]} 59. Kc4 {[%clk 0:00:20]}  Qb5+ {[%clk 0:00:04]} 60. Kd4 {[%clk 0:00:21]}  Qb4+ {[%clk 0:00:04]} 61. Kd3 {[%clk 0:00:21]}  Qb5+ {[%clk 0:00:05]} 62. Kd4 {[%clk 0:00:21]}  Qa4+ {[%clk 0:00:05]} 63. Kd3 {[%clk 0:00:22]}  Qd1+ {[%clk 0:00:05]} 64. Kc4 {[%clk 0:00:23]}  Qe2+ {[%clk 0:00:05]} 65. Kb3 {[%clk 0:00:22]}  Qb5+ {[%clk 0:00:06]} 66. Kc2 {[%clk 0:00:23]}  Qe2+ {[%clk 0:00:06]} 67. Rd2 {[%clk 0:00:21]}  Qe4+ {[%clk 0:00:06]} 68. Kc1 {[%clk 0:00:22]}  Qb4 {[%clk 0:00:04]} 69. Rdc2 {[%clk 0:00:21]}  Qb7 {[%clk 0:00:03]} 70. c6 {[%clk 0:00:21]}  Qc7 {[%clk 0:00:04]} 71. Rd2 {[%clk 0:00:22]}  Qxa5 {[%clk 0:00:02]} 72. Rdc2 {[%clk 0:00:22]}  Qc7 {[%clk 0:00:03]} 73. Rd3 {[%clk 0:00:22]}  g5 {[%clk 0:00:01]} 74. Rd7 {[%clk 0:00:22]}  Qa5 {[%clk 0:00:02]} 75. c7 {[%clk 0:00:22]}  Qe1+ {[%clk 0:00:02]} 76. Rd1 {[%clk 0:00:23]}  Qe3+ {[%clk 0:00:03]} 77. Rdd2 {[%clk 0:00:22]}  Qe1+ {[%clk 0:00:03]} 78. Kb2 {[%clk 0:00:23]}  Qxg3 {[%clk 0:00:03]} 79. c8=Q {[%clk 0:00:23]}  Qxf4 {[%clk 0:00:04]} 80. Rc4 {[%clk 0:00:21]}  Kf5 {[%clk 0:00:02]} 81. Rxf4+ {[%clk 0:00:21]}  Kxf4 {[%clk 0:00:03]} 82. Qf8 {[%clk 0:00:21]}  Ke3 {[%clk 0:00:03]} 83. Rc2 {[%clk 0:00:20]}  g4 {[%clk 0:00:04]} 84. Qc5+ {[%clk 0:00:21]}  Kf4 {[%clk 0:00:04]} 85. Rf2+ {[%clk 0:00:20]}  Kg5 {[%clk 0:00:04]} 86. Qe3+ {[%clk 0:00:20]}  Kh4 {[%clk 0:00:04]} 87. Qf4 {[%clk 0:00:20]}  Kh3 {[%clk 0:00:04]} 88. Rh2# {[%clk 0:00:21]} 1-0


[Site "https://www.chess.com"]